[Event "12th A.Margaryan Memorial 2022"]
[Site "Yerevan"]
[Date "2022.01.12"]
[Round "3.5"]
[White "Ohanyan, Emin"]
[Black "Alavi, Sayed Javad"]
[Result "1/2-1/2"]
[ECO "D37"]
[WhiteElo "2373"]
[BlackElo "2455"]
[Annotator "ChessBase"]
[PlyCount "195"]
[EventDate "2022.01.09"]
[EventType "tourn"]
[EventCountry "ARM"]
[SourceTitle "playchess.com"]
[Source "ChessBase"]
[SourceQuality "1"]
[TimeControl "40/5400+30:1800+30"]

1. d4 {[%emt 0:00:42]} Nf6 {[%emt 0:03:07]} 2. c4 {[%emt 0:00:05]} e6 {[%emt 0:00:04]} 3. Nf3 {[%emt 0:00:05]} d5 {[%emt 0:01:11]} 4. Nc3 {[%emt 0:00:09]} a6 {[%emt 0:05:25]} 5. cxd5 {[%emt 0:00:50]} exd5 {[%emt 0:00:05]} 6. Bg5 {[%emt 0:00:21]} Be7 {[%emt 0:02:33]} 7. e3 {[%emt 0:04:10]} O-O {[%emt 0:06:30]} 8. Bd3 {[%emt 0:02:50]} Be6 {[%emt 0:00:51]} 9. Ne5 {[%emt 0:14:37]} Nfd7 {[%emt 0:53:58]} 10. Qh5 {[%emt 0:13:09]} f5 {[%emt 0:01:14]} 11. Bxe7 {[%emt 0:09:12]} Qxe7 {[%emt 0:00:02]} 12. Nxd7 {[%emt 0:02:59]} Nxd7 {[%emt 0:00:14]} 13. O-O {[%emt 0:01:07]} Rae8 {[%emt 0:01:57]} 14. a3 {[%emt 0:07:23]} Nf6 {[%emt 0:02:37]} 15. Qh4 {[%emt 0:08:03]} c6 {[%emt 0:02:34]} 16. b4 {[%emt 0:01:31]} Bc8 {[%emt 0:02:16]} 17. Rab1 {[%emt 0:03:40]} Qe6 {[%emt 0:03:26]} 18. a4 {[%emt 0:07:40]} Ne4 {[%emt 0:00:05]} 19. Bxe4 {[%emt 0:01:11]} fxe4 {[%emt 0:00:20]} 20. Ne2 {[%emt 0:00:21]} b5 {[%emt 0:02:26]} 21. axb5 {[%emt 0:01:36]} axb5 {[%emt 0:00:01]} 22. Ra1 {[%emt 0:01:44]} Rf7 {[%emt 0:03:16]} 23. Qg3 {[%emt 0:06:56]} Qe7 {[%emt 0:00:02]} 24. Rfb1 {[%emt 0:03:28]} Ref8 {[%emt 0:02:48]} 25. Nf4 {[%emt 0:03:02]} Bd7 {[%emt 0:02:35]} 26. h4 {[%emt 0:01:24]} Qd6 {[%emt 0:00:20]} 27. Ra7 {[%emt 0:01:22]} Qb8 {[%emt 0:00:41]} 28. Rba1 {[%emt 0:00:54]} Qd6 {[%emt 0:00:02]} 29. Rb1 {[%emt 0:02:25]} Qb8 {[%emt 0:00:01]} 30. Ra6 {[%emt 0:01:12]} Qd6 {[%emt 0:00:23]} 31. h5 {[%emt 0:00:49]} Bc8 {[%emt 0:01:06]} 32. Ra8 {[%emt 0:00:24]} Bd7 {[%emt 0:00:35]} 33. Ra7 {[%emt 0:00:45]} Qb8 {[%emt 0:00:46]} 34. Rba1 {[%emt 0:00:21]} Qd6 {[%emt 0:00:07]} 35. Rb1 {[%emt 0:00:44]} Qb8 {[%emt 0:00:47]} 36. Ra6 {[%emt 0:00:46]} Qd6 {[%emt 0:00:08]} 37. Qh4 {[%emt 0:00:30]} Bc8 {[%emt 0:02:12]} 38. Ra8 {[%emt 0:00:04]} Bf5 {[%emt 0:00:28]} 39. Ra6 {[%emt 0:01:25]} Bc8 {[%emt 0:00:27]} 40. Ra8 {[%emt 0:00:00]} Bf5 {[%emt 0:00:00]} 41. Rba1 {[%emt 0:24:13]} Rxa8 {[%emt 0:25:05]} 42. Rxa8+ {[%emt 0:00:05]} Rf8 {[%emt 0:00:04]} 43. Ra7 {[%emt 0:03:09]} Rf7 {[%emt 0:00:33]} 44. Ra6 {[%emt 0:01:25]} Bc8 {[%emt 0:04:21]} 45. Ra8 {[%emt 0:00:22]} Rf8 {[%emt 0:00:01]} 46. h6 {[%emt 0:02:02]} Qxh6 {[%emt 0:00:49]} 47. Qxh6 {[%emt 0:01:30]} gxh6 {[%emt 0:00:01]} 48. Kh2 {[%emt 0:00:24]} Bd7 {[%emt 0:01:39]} 49. Ra7 {[%emt 0:00:28]} Bf5 {[%emt 0:01:17]} 50. Kg3 {[%emt 0:00:32]} Rf6 {[%emt 0:00:47]} 51. Kh4 {[%emt 0:01:21]} Bg6 {[%emt 0:00:15]} 52. Rc7 {[%emt 0:00:21]} Kf8 {[%emt 0:00:31]} 53. g4 {[%emt 0:00:39]} Kg8 {[%emt 0:00:45]} 54. Rc8+ {[%emt 0:00:30]} Kf7 {[%emt 0:00:55]} 55. Rc7+ {[%emt 0:00:28]} Kg8 {[%emt 0:00:15]} 56. Ra7 {[%emt 0:00:30]} Kf8 {[%emt 0:01:36]} 57. Kg3 {[%emt 0:00:32]} Kg8 {[%emt 0:00:12]} 58. Kh3 {[%emt 0:00:17]} Bf7 {[%emt 0:00:41]} 59. Ra6 {[%emt 0:00:39]} Kg7 {[%emt 0:00:13]} 60. Kh4 {[%emt 0:00:13]} Bg6 {[%emt 0:00:21]} 61. Ra8 {[%emt 0:00:09]} Rd6 {[%emt 0:01:37]} 62. Rc8 {[%emt 0:00:39]} Rf6 {[%emt 0:00:26]} 63. Kg3 {[%emt 0:00:50]} Kf7 {[%emt 0:00:34]} 64. Rc7+ {[%emt 0:00:10]} Kf8 {[%emt 0:00:22]} 65. Kg2 {[%emt 0:01:04]} Bf7 {[%emt 0:00:40]} 66. Kh3 {[%emt 0:00:29]} Bg6 {[%emt 0:00:16]} 67. Kh4 {[%emt 0:00:05]} Rd6 {[%emt 0:00:26]} 68. g5 {[%emt 0:00:02]} hxg5+ {[%emt 0:00:35]} 69. Kxg5 {[%emt 0:00:06]} Bf7 {[%emt 0:01:15]} 70. Kf5 {[%emt 0:00:57]} Rh6 {[%emt 0:00:05]} 71. Rd7 {[%emt 0:01:20]} Be8 {[%emt 0:01:09]} 72. Rc7 {[%emt 0:00:30]} Bf7 {[%emt 0:00:03]} 73. Ke5 {[%emt 0:00:08]} Ke8 {[%emt 0:00:33]} 74. Ra7 {[%emt 0:00:32]} Kf8 {[%emt 0:00:11]} 75. Rd7 {[%emt 0:00:12]} Be8 {[%emt 0:00:47]} 76. Ra7 {[%emt 0:00:46]} Bf7 {[%emt 0:00:07]} 77. Kf5 {[%emt 0:00:41]} Rd6 {[%emt 0:01:13]} 78. Kg5 {[%emt 0:00:13]} Kg8 {[%emt 0:00:15]} 79. Ra1 {[%emt 0:00:07]} Kg7 {[%emt 0:00:21]} 80. Rh1 {[%emt 0:00:35]} Bg6 {[%emt 0:00:50]} 81. Rh6 {[%emt 0:00:51]} Kf7 {[%emt 0:00:14]} 82. Rh1 {[%emt 0:00:55]} Rf6 {[%emt 0:00:46]} 83. Ra1 {[%emt 0:00:21]} Rd6 {[%emt 0:00:37]} 84. Ra7+ {[%emt 0:00:16]} Kf8 {[%emt 0:00:03]} 85. Ng2 {[%emt 0:00:50]} Re6 {[%emt 0:00:47]} 86. Rc7 {[%emt 0:00:17]} Rd6 {[%emt 0:00:22]} 87. Nh4 {[%emt 0:00:31]} Re6 {[%emt 0:00:01]} 88. Ra7 {[%emt 0:00:21]} Rd6 {[%emt 0:00:28]} 89. Rb7 {[%emt 0:00:10]} Re6 {[%emt 0:00:10]} 90. Rc7 {[%emt 0:00:01]} Rd6 {[%emt 0:00:21]} 91. f4 {[%emt 0:00:47]} exf3 {[%emt 0:00:21]} 92. Nxf3 {[%emt 0:00:03]} h6+ {[%emt 0:00:29]} 93. Kg4 {[%emt 0:00:31]} Rf6 {[%emt 0:00:52]} 94. Ne5 {[%emt 0:00:08]} Be8 {[%emt 0:00:02]} 95. Rh7 {[%emt 0:00:54]} Kg8 {[%emt 0:00:17]} 96. Re7 {[%emt 0:00:06]} Kf8 {[%emt 0:00:10]} 97. Rh7 {[%emt 0:00:08]} Kg8 {[%emt 0:00:05]} 98. Re7 {[%emt 0:00:03]} 1/2-1/2

[Event "12th A.Margaryan Memorial 2022"]
[Site "Yerevan"]
[Date "2022.01.16"]
[Round "8.1"]
[White "Makarian, Rudik"]
[Black "Barseghyan, Armen Ar."]
[Result "1-0"]
[ECO "E16"]
[WhiteElo "2509"]
[BlackElo "2358"]
[Annotator "RC"]
[PlyCount "137"]
[EventDate "2022.01.09"]
[EventType "tourn"]
[EventCountry "ARM"]
[SourceTitle "playchess.com"]
[Source "ChessBase"]
[SourceQuality "1"]
[TimeControl "40/5400+30:1800+30"]

1. d4 {[%emt 0:01:27]} Nf6 {[%emt 0:02:51]} 2. c4 {[%emt 0:00:05]} e6 {[%emt 0:00:13]} 3. Nf3 {[%emt 0:00:04]} d5 {[%emt 0:00:15]} 4. g3 {[%emt 0:00:04]} Bb4+ {[%emt 0:00:24]} 5. Nbd2 {[%emt 0:00:35]} O-O {[%emt 0:00:20]} 6. Bg2 {[%emt 0:00:03]} b6 {[%emt 0:00:29]} 7. O-O {[%emt 0:00:28]} Bb7 {[%emt 0:01:43]} 8. b3 {[%emt 0:00:56]} a5 {[%emt 0:00:50]} 9. Bb2 {[%emt 0:00:19]} a4 {[%emt 0:00:43]} 10. bxa4 {[%emt 0:00:17]} Nc6 {[%emt 0:01:49]} 11. Rc1 {[%emt 0:14:43]} Na5 {[%emt 0:14:40]} 12. Ne5 {[%emt 0:02:38]} Bxd2 {[%emt 0:08:10]} 13. Qxd2 {[%emt 0:02:52]} Nd7 {[%emt 0:00:06]} 14. Ng4 {[%emt 0:03:22]} c6 {[%emt 0:05:57]} 15. Ne3 {[%emt 0:05:42]} Ba6 {[%emt 0:00:33]} 16. cxd5 {[%emt 0:00:33]} exd5 {[%emt 0:01:33]} 17. Ba3 {[%emt 0:03:37]} Re8 {[%emt 0:01:25]} 18. Bb4 {[%emt 0:00:11]} Bb7 {[%emt 0:05:24]} 19. Nf5 {[%emt 0:08:42]} Re6 {[%emt 0:01:11]} 20. Nd6 {[%emt 0:01:01]} Qb8 {[%emt 0:00:11]} 21. Nxb7 {[%emt 0:02:32]} Qxb7 {[%emt 0:01:06]} 22. Rfe1 {[%emt 0:01:26]} Nf6 {[%emt 0:08:18]} 23. Bh3 {[%emt 0:08:30]} Ree8 {[%emt 0:06:58]} 24. Bxa5 {[%emt 0:01:17]} Rxa5 {[%emt 0:00:07]} 25. Qb4 {[%emt 0:00:41]} h5 {[%emt 0:12:09]} 26. e3 {[%emt 0:03:27]} Ne4 {[%emt 0:08:25]} 27. Bg2 {[%emt 0:04:15]} Re6 {[%emt 0:02:20]} 28. Rb1 {[%emt 0:01:04]} Qa8 {[%emt 0:10:02]} 29. Qxb6 {[%emt 0:01:08]} Rxa4 {[%emt 0:00:04]} 30. Qc7 {[%emt 0:01:11]} Qa5 {[%emt 0:02:45]} 31. Qc8+ {[%emt 0:08:48]} Kh7 {[%emt 0:00:04]} 32. Bxe4+ {[%emt 0:00:06]} dxe4 {[%emt 0:00:09]} 33. Rec1 {[%emt 0:03:29]} Rxa2 {[%emt 0:01:30]} 34. Rc5 {[%emt 0:00:44]} Qd2 {[%emt 0:00:24]} 35. Rf1 {[%emt 0:00:39]} Qe2 {[%emt 0:01:11]} 36. Rf5 {[%emt 0:08:13]} Kg6 {[%emt 0:00:51]} 37. Rf4 {[%emt 0:00:00]} Rc2 {[%emt 0:02:51]} 38. h4 {[%emt 0:07:37]} Rf6 {[%emt 0:00:51]} 39. Rxf6+ {[%emt 0:00:15]} gxf6 {[%emt 0:00:36]} 40. Qg8+ {[%emt 0:00:00]} Kh6 {[%emt 0:00:00]} 41. Qxf7 {[%emt 0:16:09]} Qf3 {[%emt 0:15:26]} 42. Qf8+ {[%emt 0:00:58]} Kg6 {[%emt 0:01:16]} 43. Qc8 {[%emt 0:01:54]} Qf5 {[%emt 0:06:51]} 44. Qg8+ {[%emt 0:02:14]} Kh6 {[%emt 0:00:06]} 45. Qb3 {[%emt 0:00:07]} Re2 {[%emt 0:01:44]} 46. Qc4 {[%emt 0:00:32]} Qf3 {[%emt 0:00:53]} 47. Qxc6 {[%emt 0:00:09]} Kg6 {[%emt 0:00:06]} 48. Qe8+ {[%emt 0:00:30]} Kf5 {[%emt 0:00:03]} 49. Qd7+ {[%emt 0:00:14]} Kg6 {[%emt 0:00:02]} 50. Qe8+ {[%emt 0:01:54]} Kf5 {[%emt 0:00:04]} 51. Qg8 {[%emt 0:00:58]} Rc2 {[%emt 0:02:51]} 52. Qg7 {[%emt 0:04:58]} Re2 {[%emt 0:01:33]} 53. Qd7+ {[%emt 0:02:08]} Kg6 {[%emt 0:00:38]} 54. Qd6 {[%emt 0:00:25]} Rc2 {[%emt 0:00:48]} 55. Qf4 {[%emt 0:00:22]} Rd2 {[%emt 0:00:03]} 56. Kh2 {[%emt 0:00:40]} f5 {[%emt 0:03:09]} 57. Kg1 {[%emt 0:00:29]} Rb2 {[%emt 0:03:25]} 58. Qd6+ {[%emt 0:00:26]} Kf7 {[%emt 0:00:19]} 59. d5 {[%emt 0:00:36]} Rd2 {[%emt 0:00:34]} 60. Qe6+ {[%emt 0:00:10]} Kg7 {[%emt 0:00:40]} 61. d6 {[%emt 0:00:41]} Rd1 {[%emt 0:00:28]} 62. d7 {[%emt 0:01:00]} Rxf1+ {[%emt 0:00:15]} 63. Kxf1 {[%emt 0:00:02]} Qd1+ {[%emt 0:00:06]} 64. Kg2 {[%emt 0:00:01]} Qf3+ {[%emt 0:00:03]} 65. Kg1 {[%emt 0:00:02]} Qd1+ {[%emt 0:00:04]} 66. Kh2 {[%emt 0:00:03]} Qf3 {[%emt 0:00:07]} 67. Qe7+ {[%emt 0:00:08]} Kg6 {[%emt 0:00:05]} 68. Qd6+ {[%emt 0:00:04]} Kf7 {[%emt 0:00:08]} 69. Qd3 {[%emt 0:01:11]} 1-0

[Event "12th A.Margaryan Memorial 2022"]
[Site "Yerevan"]
[Date "2022.01.16"]
[Round "8.4"]
[White "Danielyan, Vahe"]
[Black "Ohanyan, Emin"]
[Result "1-0"]
[ECO "D38"]
[WhiteElo "2332"]
[BlackElo "2373"]
[Annotator "ChessBase"]
[PlyCount "59"]
[EventDate "2022.01.09"]
[EventType "tourn"]
[EventCountry "ARM"]
[SourceTitle "playchess.com"]
[Source "ChessBase"]
[SourceQuality "1"]
[TimeControl "40/5400+30:1800+30"]

1. d4 {[%emt 0:00:02]} Nf6 {[%emt 0:00:12]} 2. c4 {[%emt 0:00:16]} e6 {[%emt 0:00:04]} 3. Nc3 {[%emt 0:00:04]} Bb4 {[%emt 0:00:03]} 4. Nf3 {[%emt 0:00:15]} d5 {[%emt 0:00:15]} 5. Qa4+ {[%emt 0:00:07]} Nc6 {[%emt 0:00:04]} 6. e3 {[%emt 0:00:04]} O-O {[%emt 0:00:34]} 7. Qc2 {[%emt 0:00:04]} Re8 {[%emt 0:00:21]} 8. Bd2 {[%emt 0:00:05]} h6 {[%emt 0:00:08]} 9. a3 {[%emt 0:00:19]} Bf8 {[%emt 0:00:04]} 10. O-O-O {[%emt 0:03:06]} a6 {[%emt 0:17:49]} 11. Rg1 {[%emt 0:05:48]} dxc4 {[%emt 0:03:07]} 12. g4 {[%emt 0:00:59]} b5 {[%emt 0:39:05]} 13. g5 {[%emt 0:00:34]} hxg5 {[%emt 0:01:15]} 14. Nxg5 {[%emt 0:00:05]} b4 {[%emt 0:01:02]} 15. Nce4 {[%emt 0:00:05]} g6 {[%emt 0:00:08]} 16. Bxc4 {[%emt 0:00:49]} bxa3 {[%emt 0:03:26]} 17. Nxf7 {[%emt 0:06:00]} Kxf7 {[%emt 0:04:26]} 18. Ng5+ {[%emt 0:00:12]} Kg7 {[%emt 0:08:16]} 19. Nf3 {[%emt 0:00:32]} Kh8 {[%emt 0:07:03]} 20. Qxg6 {[%emt 0:02:10]} axb2+ {[%emt 0:02:41]} 21. Kb1 {[%emt 0:00:38]} Qe7 {[%emt 0:01:36]} 22. Ne5 {[%emt 0:03:54]} Nxe5 {[%emt 0:03:52]} 23. dxe5 {[%emt 0:01:05]} Qh7 {[%emt 0:01:20]} 24. exf6 {[%emt 0:00:59]} e5 {[%emt 0:01:30]} 25. Bd3 {[%emt 0:06:26]} Qxg6 {[%emt 0:00:27]} 26. Bxg6 {[%emt 0:00:19]} Re6 {[%emt 0:01:03]} 27. Bc3 {[%emt 0:01:28]} Bd6 {[%emt 0:00:21]} 28. Be4 {[%emt 0:01:36]} Rb8 {[%emt 0:01:32]} 29. f7 {[%emt 0:00:09]} Bd7 {[%emt 0:00:03]} 30. Rg5 {[%emt 0:00:42]} 1-0